fUST/lending_fUST_20240528
["ID","MTS","AMOUNT","RATE_DAILY","PERIOD"]
[328063631,1716828670650,-2485.43,0.00028219,4]
[328063632,1716828670659,-691.66,0.00028219,4]
[328063633,1716828670669,-500.0,0.00028219,4]
[328063634,1716828670680,-500.0,0.00028219,4]
[328063635,1716828670689,-500.0,0.00028219,4]
[328063636,1716828670699,-563.58,0.00028219,4]
[328063637,1716828670709,-500.0,0.00028219,4]
[328063638,1716828670719,-3918.91,0.00028219,4]
[328063639,1716828670728,-500.0,0.00028219,4]
[328063640,1716828670738,-520.07,0.00028219,4]
[328063641,1716828670747,-1269.93,0.00028219,4]
[328063642,1716828670758,-1098.77,0.00028219,4]
[328063643,1716828670778,-581.09481574,0.00028219,4]
[328063644,1716828670789,-500.0,0.00028219,4]
[328063645,1716828670799,-500.0,0.00028219,4]
[328063646,1716828670811,-500.0,0.00028219,4]
[328063647,1716828670821,-500.0,0.00028219,4]
[328063648,1716828670951,-3693.27,0.00028219,4]
[328063649,1716828670961,-500.0,0.00028219,4]
[328063650,1716828670970,-500.0,0.00028219,4]
[328063651,1716828670980,-530.15,0.00028219,4]
[328063652,1716828670989,-536.32,0.00028219,4]
[328063653,1716828670999,-500.0,0.00028219,4]
[328063654,1716828671009,-611.73,0.00028219,4]
[328063655,1716828671018,-500.0,0.00028219,4]
[328063656,1716828671028,-500.0,0.00028219,4]
[328063657,1716828671037,-413.8783567,0.00028219,4]
[328063658,1716828671047,-725.57,0.00028219,4]
[328063659,1716828671060,-500.0,0.00028219,4]
[328063660,1716828671070,-1157.28,0.00028219,2]
[328063661,1716828671080,-500.0,0.00028219,4]
[328063662,1716828671091,-504.63,0.00028219,4]
[328063663,1716828671102,-500.0,0.00028219,4]
[328063664,1716828671111,-617.72,0.00028219,4]
[328063665,1716828671121,-1823.06,0.00028219,4]
[328063666,1716828671131,-601.37,0.00028219,4]
[328063667,1716828671140,-500.0,0.00028219,4]
[328063668,1716828671150,-500.0,0.00028219,4]
[328063669,1716828671159,-500.0,0.00028219,4]
[328063670,1716828671169,-2675.35,0.00028219,4]
[328063671,1716828671178,-500.0,0.00028219,4]
[328063672,1716828671187,-542.02757225,0.00028219,4]
[328063673,1716828671196,-596.2,0.00028219,4]
[328063674,1716828671206,-1132.79,0.00028219,4]
[328063675,1716828671216,-815.6,0.00028219,4]
[328063676,1716828671225,-500.0,0.00028219,4]
[328063677,1716828671234,-500.0,0.00028219,4]
[328063678,1716828671243,-500.0,0.00028219,4]
[328063679,1716828671253,-500.0,0.00028219,4]
[328063680,1716828671262,-500.0,0.00028219,4]
[328063681,1716828671271,-669.54,0.00028219,4]
[328063682,1716828671280,-606.63,0.00028219,4]
[328063683,1716828671290,-500.0,0.00028219,4]
[328063684,1716828671299,-500.0,0.00028219,4]
[328063685,1716828671313,-500.0,0.00028219,4]
[328063686,1716828671321,-500.0,0.00028219,4]
[328063687,1716828671330,-1859.98,0.00028219,4]
[328063688,1716828671339,-500.0,0.00028219,4]
[328063689,1716828671348,-310.24837433,0.00028219,4]
[328063690,1716828671357,-945.57,0.00028219,4]
[328063691,1716828671366,-500.0,0.00028219,4]
[328063692,1716828671376,-1646.07,0.00028219,4]
[328063693,1716828671385,-500.0,0.00028219,4]
[328063694,1716828671395,-500.0,0.00028219,4]
[328063695,1716828671405,-500.0,0.00028219,4]
[328063696,1716828671414,-500.0,0.00028219,4]
[328063697,1716828671423,-500.0,0.00028219,4]
[328063698,1716828671432,-250.0,0.00028219,4]
[328063699,1716828671442,-638.7,0.00028219,4]
[328063700,1716828671452,-574.14,0.00028219,4]
[328063701,1716828671461,-500.0,0.00028219,4]
[328063702,1716828671470,-500.0,0.00028219,4]
[328063703,1716828671480,-2360.67,0.00028219,4]
[328063704,1716828671489,-500.0,0.00028219,4]
[328063705,1716828671499,-518.59757176,0.00028219,4]
[328063706,1716828671508,-1074.44,0.00028219,4]
[328063707,1716828671517,-921.35,0.00028219,4]
[328063708,1716828671526,-576.69,0.00028219,4]
[328063709,1716828671535,-1212.06,0.00028219,4]
[328063710,1716828671545,-12483.57,0.00028219,4]
[328063711,1716828671557,-528.21,0.00028219,4]
[328063712,1716828671566,-500.0,0.00028219,4]
[328063713,1716828671575,-500.0,0.00028219,4]
[328063714,1716828671585,-1012.48,0.00028219,4]
[328063715,1716828671595,-500.0,0.00028219,4]
[328063716,1716828671604,-773.35,0.00028219,4]
[328063717,1716828671613,-500.0,0.00028219,4]
[328063718,1716828671623,-910.69,0.00028219,4]
[328063719,1716828671631,-500.0,0.00028219,4]
[328063720,1716828671641,-500.0,0.00028219,4]
[328063721,1716828671650,-500.0,0.00028219,4]
[328063722,1716828671660,-704.47,0.00028219,4]
[328063723,1716828671669,-500.0,0.00028219,4]
[328063724,1716828671679,-790.95,0.00028219,4]
[328063725,1716828671688,-1016.91310088,0.00028219,4]
[328063726,1716828671698,-500.0,0.00028219,4]
[328063727,1716828671708,-500.0,0.00028219,4]
[328063728,1716828671718,-602.49291458,0.00028219,4]
[328063729,1716828671728,-500.0,0.00028219,4]
[328063730,1716828671739,-814.71,0.00028219,4]
[328063731,1716828671749,-2637.19,0.00028219,4]
[328063732,1716828671758,-500.0,0.00028219,4]
[328063733,1716828671768,-500.0,0.00028219,4]
[328063734,1716828671780,-500.0,0.00028219,4]
[328063735,1716828671790,-736.82,0.00028219,4]
[328063736,1716828671799,-952.11,0.00028219,4]
[328063737,1716828671811,-500.0,0.00028219,4]
[328063738,1716828671821,-500.0,0.00028219,4]
[328063739,1716828671830,-500.0,0.00028219,4]
[328063740,1716828671839,-529.54,0.00028219,4]
[328063741,1716828671848,-500.0,0.00028219,4]
[328063742,1716828671859,-500.0,0.00028219,4]
[328063743,1716828671869,-576.92,0.00028219,4]
[328063744,1716828671878,-604.2388395,0.00028219,4]
[328063745,1716828671888,-594.73,0.00028219,4]
[328063746,1716828671897,-500.0,0.00028219,4]
[328063747,1716828671906,-500.0,0.00028219,4]
[328063748,1716828671916,-669.39,0.00028219,4]
[328063749,1716828671925,-1352.61,0.00028219,4]
[328063750,1716828671935,-500.0,0.00028219,4]
[328063751,1716828671945,-667.65,0.00028219,4]
[328063752,1716828671956,-562.4,0.00028219,4]
[328063753,1716828671966,-3442.49,0.00028219,4]
[328063754,1716828671976,-500.0,0.00028219,4]
[328063755,1716828671986,-500.0,0.00028219,4]
[328063756,1716828671995,-500.0,0.00028219,4]
[328063757,1716828672004,-500.0,0.00028219,4]
[328063758,1716828672014,-500.0,0.00028219,4]
[328063759,1716828672023,-300.0,0.00028219,4]
[328063760,1716828672033,-550.83,0.00028219,4]
[328063761,1716828672044,-500.0,0.00028219,4]
[328063762,1716828672054,-500.0,0.00028219,4]
[328063763,1716828672064,-776.28,0.00028219,4]
[328063764,1716828672073,-3257.38,0.00028219,4]
[328063765,1716828672082,-2136.16,0.00028219,4]
[328063766,1716828672092,-2740.36,0.00028219,4]
[328063767,1716828672102,-1654.94,0.00028219,4]
[328063768,1716828672111,-554.59,0.00028219,4]
[328063769,1716828672120,-500.0,0.00028219,4]
[328063770,1716828672129,-493.31720848,0.00028219,4]
[328063771,1716828672138,-1514.86,0.00028219,4]
[328063772,1716828672147,-500.0,0.00028219,4]
[328063773,1716828672157,-500.0,0.00028219,4]
[328063774,1716828672166,-500.0,0.00028219,4]
[328063775,1716828672174,-500.0,0.00028219,4]
[328063776,1716828672183,-500.0,0.00028219,4]
[328063777,1716828672192,-500.0,0.00028219,4]
[328063778,1716828672201,-500.0,0.00028219,4]
[328063779,1716828672210,-500.0,0.00028219,4]
[328063780,1716828672219,-1050.35,0.00028219,4]
[328063781,1716828672227,-500.0,0.00028219,4]
[328063782,1716828672236,-500.0,0.00028219,4]
[328063783,1716828672245,-892.42,0.00028219,4]
[328063784,1716828672254,-500.0,0.00028219,4]
[328063785,1716828672264,-500.0,0.00028219,4]
[328063786,1716828672274,-292.27928515,0.00028219,4]
[328063787,1716828672283,-500.0,0.00028219,4]
[328063788,1716828672292,-500.0,0.00028219,4]
[328063789,1716828672301,-500.0,0.00028219,2]
[328063790,1716828672312,-651.97,0.00028219,4]
[328063791,1716828672321,-1363.75,0.00028219,4]
[328063792,1716828672331,-280.0,0.00028219,4]
[328063793,1716828672340,-593.66,0.00028219,4]
[328063794,1716828672349,-1131.43,0.00028219,4]
[328063795,1716828672359,-539.52,0.00028219,4]
[328063796,1716828672368,-500.0,0.00028219,4]
[328063797,1716828672378,-500.0,0.00028219,4]
[328063798,1716828672387,-7625.13,0.00028219,4]
[328063799,1716828672396,-500.0,0.00028219,4]
[328063800,1716828672405,-500.0,0.00028219,4]
[328063801,1716828672415,-500.0,0.00028219,4]
[328063802,1716828672424,-500.0,0.00028219,4]
[328063803,1716828672434,-574.45,0.00028219,4]
[328063804,1716828672443,-1087.57,0.00028219,4]
[328063805,1716828672452,-632.54,0.00028219,4]
[328063806,1716828672462,-6361.41,0.00028219,4]
[328063807,1716828672471,-1312.75,0.00028219,4]
[328063808,1716828672479,-633.72,0.00028219,4]
[328063809,1716828672488,-500.0,0.00028219,4]
[328063810,1716828672498,-500.0,0.00028219,4]
[328063811,1716828672507,-500.0,0.00028219,4]
[328063812,1716828672516,-587.32,0.00028219,4]
[328063813,1716828672525,-642.28,0.00028219,4]
[328063814,1716828672535,-500.0,0.00028219,4]
[328063815,1716828672546,-4795.75,0.00028219,4]
[328063816,1716828672558,-500.0,0.00028219,4]
[328063817,1716828672567,-500.0,0.00028219,4]
[328063818,1716828672576,-500.0,0.00028219,4]
[328063819,1716828672585,-2064.41,0.00028219,4]
[328063820,1716828672594,-500.0,0.00028219,4]
[328063821,1716828672603,-500.0,0.00028219,4]
[328063822,1716828672612,-500.0,0.00028219,4]
[328063823,1716828672621,-500.0,0.00028219,4]
[328063824,1716828672630,-500.0,0.00028219,4]
[328063825,1716828672639,-500.0,0.00028219,4]
[328063826,1716828672648,-500.0,0.00028219,4]
[328063827,1716828672658,-500.0,0.00028219,4]
[328063828,1716828672667,-500.0,0.00028219,4]
[328063829,1716828672675,-500.0,0.00028219,4]
[328063830,1716828672684,-500.0,0.00028219,4]
[328063831,1716828672693,-500.0,0.00028219,4]
[328063832,1716828672702,-500.0,0.00028219,4]
[328063833,1716828672711,-500.0,0.00028219,4]
[328063834,1716828672719,-500.0,0.00028219,4]
[328063835,1716828672728,-500.0,0.00028219,4]
[328063836,1716828672737,-500.0,0.00028219,4]
[328063837,1716828672746,-2566.21,0.00028219,2]
[328063838,1716828672755,-756.1,0.00028219,4]
[328063839,1716828672768,-500.0,0.00028219,4]
[328063840,1716828672777,-510.95,0.00028219,4]
[328063841,1716828672786,-801.47,0.00028219,4]
[328063842,1716828672794,-506.82,0.00028219,4]
[328063843,1716828672805,-1002.65,0.00028219,4]
[328063844,1716828672815,-1000.0,0.00028219,2]
[328063845,1716828672824,-500.0,0.00028219,4]
[328063846,1716828672833,-513.83419354,0.00028219,4]
[328063847,1716828672844,-500.0,0.00028219,4]
[328063848,1716828672853,-625.4,0.00028219,4]
[328063849,1716828672863,-605.1,0.00028219,4]
[328063850,1716828672871,-500.0,0.00028219,2]
[328063851,1716828672880,-500.0,0.00028219,4]
[328063852,1716828672890,-802.98,0.00028219,4]
[328063853,1716828672899,-2197.41,0.00028219,4]
[328063854,1716828672908,-17023.71,0.00028219,4]
[328063855,1716828672918,-544.16,0.00028219,4]
[328063856,1716828672928,-500.0,0.00028219,4]
[328063857,1716828672937,-879.06,0.00028219,4]
[328063858,1716828672947,-500.0,0.00028219,4]
[328063859,1716828672956,-726.78,0.00028219,4]
[328063860,1716828672965,-500.0,0.00028219,4]
[328063861,1716828672974,-6977.2,0.00028219,4]
[328063862,1716828672983,-750.83,0.00028219,4]
[328063863,1716828672992,-2138.53,0.00028219,4]
[328063864,1716828673001,-500.0,0.00028219,4]
[328063865,1716828673011,-20833.29,0.00028219,4]
[328063866,1716828673020,-5392.04,0.00028219,4]
[328063867,1716828673029,-520.50835409,0.00028219,4]
[328063868,1716828673037,-277.50819203,0.00028219,4]
[328063869,1716828673047,-786.56,0.00028219,4]
[328063870,1716828673058,-805.12,0.00028219,4]
[328063871,1716828673068,-500.0,0.00028219,4]
[328063872,1716828673077,-2243.3,0.00028219,4]
[328063873,1716828673086,-1628.7012624,0.00028332,2]
[328063874,1716828673096,-968.26312279,0.00028355,2]
[328063875,1716828673105,-154.42348508,0.00028454,2]
[328063876,1716828673115,-500.0,0.00028493,2]
[328063877,1716828673124,-500.0,0.00028493,4]
[328063878,1716828673133,-500.0,0.00028493,4]
[328063879,1716828673142,-824.6,0.00028493,4]
[328063880,1716828673151,-500.0,0.00028493,4]
[328063881,1716828673161,-500.0,0.00028493,4]
[328063882,1716828673171,-675.69,0.00028493,4]
[328063883,1716828673181,-500.0,0.00028493,4]
[328063884,1716828673190,-1000.0,0.00028493,5]
[328063885,1716828673199,-811.63,0.00028493,4]
[328063886,1716828673209,-500.0,0.00028493,4]
[328063887,1716828673218,-500.0,0.00028493,4]
[328063888,1716828673227,-500.0,0.00028493,4]
[328063889,1716828673236,-726.55,0.00028493,4]
[328063890,1716828673244,-500.0,0.00028493,4]
[328063891,1716828673254,-500.0,0.00028493,4]
[328063892,1716828673263,-500.0,0.00028493,4]
[328063893,1716828673272,-500.0,0.00028493,4]
[328063894,1716828673387,-500.0,0.00028493,4]
[328063895,1716828673398,-626.93,0.00028493,4]
[328063896,1716828673407,-500.0,0.00028493,4]
[328063897,1716828673416,-500.0,0.00028493,4]
[328063898,1716828673425,-345.12486564,0.00028493,4]
[328063899,1716828673434,-500.0,0.00028493,4]
[328063900,1716828673443,-500.0,0.00028493,4]
[328063901,1716828673452,-1224.04,0.00028493,4]
[328063902,1716828673461,-500.0,0.00028493,4]
[328063903,1716828673470,-500.0,0.00028493,4]
[328063904,1716828673480,-535.59,0.00028493,4]
[328063905,1716828673489,-500.0,0.00028493,4]
[328063906,1716828673499,-500.0,0.00028493,4]
[328063907,1716828673507,-515.43,0.00028493,4]
[328063908,1716828673516,-500.0,0.00028493,4]
[328063909,1716828673525,-531.54,0.00028493,4]
[328063910,1716828673535,-500.0,0.00028493,4]
[328063911,1716828673544,-500.0,0.00028493,4]
[328063912,1716828673555,-659.49,0.00028493,4]
[328063913,1716828673564,-500.0,0.00028493,4]
[328063914,1716828673573,-500.0,0.00028493,4]
[328063915,1716828673582,-500.0,0.00028493,4]
[328063916,1716828673592,-500.0,0.00028493,4]
[328063917,1716828673601,-500.0,0.00028493,4]
[328063918,1716828673611,-500.0,0.00028493,4]
[328063919,1716828673620,-1246.45,0.00028493,4]
[328063920,1716828673630,-504.45,0.00028493,4]
[328063921,1716828673639,-682.29,0.00028493,4]
[328063922,1716828673649,-468.85037152,0.00028493,4]
[328063923,1716828673658,-500.0,0.00028493,4]
[328063924,1716828673667,-500.0,0.00028493,4]
[328063925,1716828673676,-529.73678612,0.00028493,4]
[328063926,1716828673686,-550.01,0.00028493,4]
[328063927,1716828673695,-851.4,0.00028493,4]
[328063928,1716828673704,-500.0,0.00028493,4]
[328063929,1716828673713,-500.0,0.00028493,4]
[328063930,1716828673722,-1016.02,0.00028493,4]
[328063931,1716828673732,-500.0,0.00028493,4]
[328063932,1716828673741,-728.84,0.00028493,4]
[328063933,1716828673750,-1130.97,0.00028493,4]
[328063934,1716828673761,-1216.29,0.00028493,4]
[328063935,1716828673773,-2810.41,0.00028493,4]
[328063936,1716828673786,-500.0,0.00028493,4]
[328063937,1716828673794,-2432.96,0.00028493,4]
[328063938,1716828673805,-581.73554193,0.00028493,4]
[328063939,1716828673814,-518.2,0.00028493,4]
[328063940,1716828673823,-509.77,0.00028493,4]
[328063941,1716828673832,-500.0,0.00028493,4]
[328063942,1716828673841,-500.0,0.00028493,4]
[328063943,1716828673853,-2823.17,0.00028493,4]
[328063944,1716828673863,-500.0,0.00028493,4]
[328063945,1716828673872,-500.0,0.00028493,4]
[328063946,1716828673881,-500.0,0.00028493,4]
[328063947,1716828673891,-500.0,0.00028493,4]
[328063948,1716828673900,-639.85,0.00028493,4]
[328063949,1716828673909,-760.94,0.00028493,4]
[328063950,1716828673919,-500.0,0.00028493,4]
[328063951,1716828673928,-500.0,0.00028493,4]
[328063952,1716828673939,-625.4,0.00028493,4]
[328063953,1716828673949,-500.0,0.00028493,4]
[328063954,1716828673958,-594.07,0.00028493,4]
[328063955,1716828673967,-500.0,0.00028493,4]
[328063956,1716828673976,-500.0,0.00028493,4]
[328063957,1716828673986,-984.46,0.00028493,4]
[328063958,1716828673995,-2041.19,0.00028493,4]
[328063959,1716828674004,-500.0,0.00028493,4]
[328063960,1716828674013,-500.0,0.00028493,4]
[328063961,1716828674022,-2214.31,0.00028493,4]
[328063962,1716828674033,-501.11999557,0.00028493,4]
[328063963,1716828674042,-1654.46,0.00028493,4]
[328063964,1716828674054,-500.0,0.00028493,4]
[328063965,1716828674063,-591.11,0.00028493,4]
[328063966,1716828674073,-924.61,0.00028493,4]
[328063967,1716828674081,-500.0,0.00028493,4]
[328063968,1716828674090,-500.0,0.00028493,4]
[328063969,1716828674099,-500.0,0.00028493,4]
[328063970,1716828674109,-540.6910508,0.00028493,4]
[328063971,1716828674118,-500.0,0.00028493,4]
[328063972,1716828674127,-500.0,0.00028493,4]
[328063973,1716828674136,-1453.45,0.00028493,4]
[328063974,1716828674146,-641.76,0.00028493,4]
[328063975,1716828674155,-641.56,0.00028493,4]
[328063976,1716828674164,-500.0,0.00028493,4]
[328063977,1716828674173,-500.0,0.00028493,4]
[328063978,1716828674182,-500.0,0.00028493,4]
[328063979,1716828674191,-500.0,0.00028493,4]
[328063980,1716828674200,-500.0,0.00028493,4]
[328063981,1716828674209,-500.0,0.00028493,4]
[328063982,1716828674218,-500.0,0.00028493,4]
[328063983,1716828674227,-500.0,0.00028493,4]
[328063984,1716828674236,-949.44,0.00028493,4]
[328063985,1716828674246,-3125.75,0.00028493,4]
[328063986,1716828674255,-866.38,0.00028493,4]
[328063987,1716828674264,-1068.09,0.00028493,4]
[328063988,1716828674273,-831.3,0.00028493,4]
[328063989,1716828674282,-654.84,0.00028493,4]
[328063990,1716828674291,-1063.2,0.00028493,4]
[328063991,1716828674300,-988.59,0.00028493,4]
[328063992,1716828674312,-2485.43,0.00028493,4]
[328063993,1716828674321,-691.66,0.00028493,4]
[328063994,1716828674331,-401.82035638,0.00028493,4]
[328063995,1716828674340,-500.0,0.00028493,4]
[328063996,1716828674349,-500.0,0.00028493,4]
[328063997,1716828674359,-563.58,0.00028493,4]
[328063998,1716828674368,-500.0,0.00028493,4]
[328063999,1716828674377,-3918.91,0.00028493,4]
[328064000,1716828674386,-500.0,0.00028493,4]
[328064001,1716828674395,-520.07,0.00028493,4]
[328064002,1716828674404,-1269.93,0.00028493,4]
[328064003,1716828674413,-1098.77,0.00028493,4]
[328064004,1716828674422,-500.0,0.00028493,4]
[328064005,1716828674432,-500.0,0.00028493,4]
[328064006,1716828674441,-500.0,0.00028493,4]
[328064007,1716828674450,-500.0,0.00028493,4]
[328064008,1716828674459,-3693.27,0.00028493,4]
[328064009,1716828674468,-500.0,0.00028493,4]
[328064010,1716828674477,-500.0,0.00028493,4]
[328064011,1716828674487,-530.15,0.00028493,4]
[328064012,1716828674495,-536.32,0.00028493,4]
[328064013,1716828674505,-500.0,0.00028493,4]
[328064014,1716828674514,-611.73,0.00028493,4]
[328064015,1716828674523,-500.0,0.00028493,4]
[328064016,1716828674532,-500.0,0.00028493,4]
[328064017,1716828674541,-725.57,0.00028493,4]
[328064018,1716828674550,-500.0,0.00028493,4]
[328064019,1716828674561,-1157.28,0.00028493,2]
[328064020,1716828674570,-500.0,0.00028493,4]
[328064021,1716828674579,-504.63,0.00028493,4]
[328064022,1716828674587,-500.0,0.00028493,4]
[328064023,1716828674597,-1823.06,0.00028493,4]
[328064024,1716828674605,-601.37,0.00028493,4]
[328064025,1716828674614,-500.0,0.00028493,4]
[328064026,1716828674623,-617.72,0.00028493,4]
[328064027,1716828674632,-529.1721239,0.00028493,4]
[328064028,1716828674641,-500.0,0.00028493,4]
[328064029,1716828674651,-2675.35,0.00028493,4]
[328064030,1716828674660,-500.0,0.00028493,4]
[328064031,1716828674669,-596.2,0.00028493,4]
[328064032,1716828674678,-1132.79,0.00028493,4]
[328064033,1716828674688,-815.6,0.00028493,4]
[328064034,1716828674697,-500.0,0.00028493,4]
[328064035,1716828674706,-500.0,0.00028493,4]
[328064036,1716828674715,-500.0,0.00028493,4]
[328064037,1716828674724,-500.0,0.00028493,4]
[328064038,1716828674733,-500.0,0.00028493,4]
[328064039,1716828674742,-669.54,0.00028493,4]
[328064040,1716828674751,-606.63,0.00028493,4]
[328064041,1716828674760,-500.0,0.00028493,4]
[328064042,1716828674774,-500.0,0.00028493,4]
[328064043,1716828674783,-500.0,0.00028493,4]
[328064044,1716828674792,-500.0,0.00028493,4]
[328064045,1716828674802,-1859.98,0.00028493,4]
[328064046,1716828674814,-500.0,0.00028493,4]
[328064047,1716828674823,-945.57,0.00028493,4]
[328064048,1716828674832,-500.0,0.00028493,4]
[328064049,1716828674841,-1646.07,0.00028493,4]
[328064050,1716828674850,-500.0,0.00028493,4]
[328064051,1716828674861,-500.0,0.00028493,4]
[328064052,1716828674870,-500.0,0.00028493,4]
[328064053,1716828674879,-500.0,0.00028493,4]
[328064054,1716828674889,-500.0,0.00028493,4]
[328064055,1716828674898,-250.0,0.00028493,4]
[328064056,1716828674908,-638.7,0.00028493,4]
[328064057,1716828674918,-574.14,0.00028493,4]
[328064058,1716828674928,-500.0,0.00028493,4]
[328064059,1716828674939,-500.0,0.00028493,4]
[328064060,1716828674949,-2360.67,0.00028493,4]
[328064061,1716828674958,-500.0,0.00028493,4]
[328064062,1716828674967,-1074.44,0.00028493,4]
[328064063,1716828674975,-921.35,0.00028493,4]
[328064064,1716828674985,-576.69,0.00028493,4]
[328064065,1716828674994,-1212.06,0.00028493,4]
[328064066,1716828675003,-12483.57,0.00028493,4]
[328064067,1716828675013,-528.21,0.00028493,4]
[328064068,1716828675022,-500.0,0.00028493,4]
[328064069,1716828675031,-500.0,0.00028493,4]
[328064070,1716828675041,-1012.48,0.00028493,4]
[328064071,1716828675051,-500.0,0.00028493,4]
[328064072,1716828675062,-773.35,0.00028493,4]
[328064073,1716828675072,-500.0,0.00028493,4]
[328064074,1716828675082,-910.69,0.00028493,4]
[328064075,1716828675092,-500.0,0.00028493,4]
[328064076,1716828675102,-500.0,0.00028493,4]
[328064077,1716828675111,-500.0,0.00028493,4]
[328064078,1716828675120,-704.47,0.00028493,4]
[328064079,1716828675129,-500.0,0.00028493,4]
[328064080,1716828675139,-790.95,0.00028493,4]
[328064081,1716828675147,-500.0,0.00028493,4]
[328064082,1716828675157,-500.0,0.00028493,4]
[328064083,1716828675166,-500.0,0.00028493,4]
[328064084,1716828675175,-814.71,0.00028493,4]
[328064085,1716828675183,-2637.19,0.00028493,4]
[328064086,1716828675192,-500.0,0.00028493,4]
[328064087,1716828675201,-500.0,0.00028493,4]
[328064088,1716828675210,-500.0,0.00028493,4]
[328064089,1716828675219,-736.82,0.00028493,4]
[328064090,1716828675228,-952.11,0.00028493,4]
[328064091,1716828675238,-500.0,0.00028493,4]
[328064092,1716828675247,-500.0,0.00028493,4]
[328064093,1716828675256,-529.54,0.00028493,4]
[328064094,1716828675265,-500.0,0.00028493,4]
[328064095,1716828675274,-500.0,0.00028493,4]
[328064096,1716828675283,-333.89492497,0.00028493,4]
[328064097,1716828675292,-576.92,0.00028493,4]
[328064098,1716828675301,-594.73,0.00028493,4]
[328064099,1716828675312,-500.0,0.00028493,4]
[328064100,1716828675322,-500.0,0.00028493,4]
[328064101,1716828675331,-669.39,0.00028493,4]
[328064102,1716828675340,-1352.61,0.00028493,4]
[328064103,1716828675350,-500.0,0.00028493,4]
[328064104,1716828675359,-667.65,0.00028493,4]
[328064105,1716828675368,-562.4,0.00028493,4]
[328064106,1716828675377,-3442.49,0.00028493,4]
[328064107,1716828675387,-500.0,0.00028493,4]
[328064108,1716828675396,-500.0,0.00028493,4]
[328064109,1716828675405,-500.0,0.00028493,4]
[328064110,1716828675415,-500.0,0.00028493,4]
[328064111,1716828675424,-500.0,0.00028493,4]
[328064112,1716828675434,-300.0,0.00028493,4]
[328064113,1716828675443,-550.83,0.00028493,4]
[328064114,1716828675452,-500.0,0.00028493,4]
[328064115,1716828675461,-500.0,0.00028493,4]
[328064116,1716828675471,-776.28,0.00028493,4]
[328064117,1716828675480,-3257.38,0.00028493,4]
[328064118,1716828675489,-2136.16,0.00028493,4]
[328064119,1716828675499,-2740.36,0.00028493,4]
[328064120,1716828675508,-1654.94,0.00028493,4]
[328064121,1716828675624,-554.59,0.00028493,4]
[328064122,1716828675633,-500.0,0.00028493,4]
[328064123,1716828675642,-1514.86,0.00028493,4]
[328064124,1716828675651,-500.0,0.00028493,4]
[328064125,1716828675661,-500.0,0.00028493,4]
[328064126,1716828675670,-500.0,0.00028493,4]
[328064127,1716828675679,-636.31858465,0.00028493,4]
[328064128,1716828675688,-500.0,0.00028493,4]
[328064129,1716828675697,-500.0,0.00028493,4]
[328064130,1716828675707,-500.0,0.00028493,4]